[Event "Early-Titled-Tuesday-Blitz-October-17-2023"]
[Site "Chess.com"]
[Date "2023.10.17"]
[Round "6"]
[White "Egor_Koshulyan"]
[Black "brm72"]
[Result "0-1"]
[WhiteElo "2719"]
[BlackElo "2542"]
[TimeControl "180+1"]
[EndTime "9:11:25 PDT"]
[Termination "brm72 won by checkmate"]

1. e4 {[%clk 0:03:00.9]} 1... c5 {[%clk 0:02:59.5]} 2. Nf3 {[%clk 0:03:01.2]}
2... d6 {[%clk 0:02:59.2]} 3. d4 {[%clk 0:03:01.4]} 3... cxd4 {[%clk 0:03:00]}
4. Qxd4 {[%clk 0:03:01.5]} 4... Nc6 {[%clk 0:02:58.8]} 5. Bb5 {[%clk 0:03:02]}
5... Bd7 {[%clk 0:02:56.6]} 6. Bxc6 {[%clk 0:03:02.4]} 6... Bxc6 {[%clk
0:02:56.1]} 7. Nc3 {[%clk 0:03:03]} 7... Nf6 {[%clk 0:02:46.4]} 8. Bg5 {[%clk
0:03:03.1]} 8... e6 {[%clk 0:02:44.1]} 9. O-O-O {[%clk 0:03:03.2]} 9... Be7
{[%clk 0:02:44.3]} 10. Qd3 {[%clk 0:03:03.7]} 10... Qa5 {[%clk 0:02:44.2]} 11.
Kb1 {[%clk 0:03:03.7]} 11... Qa6 {[%clk 0:02:44]} 12. Qe3 {[%clk 0:02:39.8]}
12... O-O {[%clk 0:02:43.4]} 13. Nd4 {[%clk 0:02:04.4]} 13... b5 {[%clk
0:02:36.2]} 14. f3 {[%clk 0:01:50]} 14... b4 {[%clk 0:02:31.3]} 15. Nce2 {[%clk
0:01:49.4]} 15... Rfc8 {[%clk 0:02:13.8]} 16. g4 {[%clk 0:01:44.2]} 16... Qa5
{[%clk 0:01:57.7]} 17. h4 {[%clk 0:01:40.8]} 17... Qb6 {[%clk 0:01:51.1]} 18.
Qd2 {[%clk 0:01:30.7]} 18... a5 {[%clk 0:01:47.3]} 19. h5 {[%clk 0:01:24.1]}
19... a4 {[%clk 0:01:43.1]} 20. Be3 {[%clk 0:01:23.9]} 20... Qb7 {[%clk
0:01:38.8]} 21. Ng3 {[%clk 0:01:04.8]} 21... Nd7 {[%clk 0:01:12.1]} 22. g5
{[%clk 0:01:01.3]} 22... Ne5 {[%clk 0:01:07.1]} 23. g6 {[%clk 0:01:01]} 23...
Nc4 {[%clk 0:00:41]} 24. Qe2 {[%clk 0:01:00.5]} 24... d5 {[%clk 0:00:36.6]} 25.
gxf7+ {[%clk 0:00:54.2]} 25... Kxf7 {[%clk 0:00:35.2]} 26. Bc1 {[%clk
0:00:28.3]} 26... b3 {[%clk 0:00:31.3]} 27. cxb3 {[%clk 0:00:26.3]} 27... axb3
{[%clk 0:00:30.6]} 28. a3 {[%clk 0:00:27]} 28... Bxa3 {[%clk 0:00:22.5]} 29. Rd3
{[%clk 0:00:10.8]} 29... Bc5 {[%clk 0:00:11.2]} 30. Nxb3 {[%clk 0:00:09.8]}
30... Qa7 {[%clk 0:00:06.5]} 31. exd5 {[%clk 0:00:04.3]} 31... Bxd5 {[%clk
0:00:04.4]} 32. Rxd5 {[%clk 0:00:04.8]} 32... exd5 {[%clk 0:00:04]} 33. Re1
{[%clk 0:00:05.5]} 33... Kg8 {[%clk 0:00:03.8]} 34. Qe6+ {[%clk 0:00:05.1]}
34... Kh8 {[%clk 0:00:03.9]} 35. Qxd5 {[%clk 0:00:01.9]} 35... Qa2+ {[%clk
0:00:03.8]} 36. Kc2 {[%clk 0:00:02.6]} 36... Na3+ {[%clk 0:00:04.2]} 37. Kd1
{[%clk 0:00:02.2]} 37... Rd8 {[%clk 0:00:04.4]} 38. Qxd8+ {[%clk 0:00:01.2]}
38... Rxd8+ {[%clk 0:00:05.3]} 39. Bd2 {[%clk 0:00:01]} 39... Qxb3+ {[%clk
0:00:05.4]} 40. Ke2 {[%clk 0:00:01.9]} 40... Qd3+ {[%clk 0:00:05.3]} 41. Kd1
{[%clk 0:00:01.1]} 41... Qxd2# {[%clk 0:00:05.8]} 0-1

[Event "Early-Titled-Tuesday-Blitz-October-17-2023"]
[Site "Chess.com"]
[Date "2023.10.17"]
[Round "6"]
[White "Makswolf200817"]
[Black "salomez"]
[Result "1-0"]
[WhiteElo "2683"]
[BlackElo "2337"]
[TimeControl "180+1"]
[EndTime "9:11:28 PDT"]
[Termination "Makswolf200817 won by resignation"]

1. d4 {[%clk 0:03:00.9]} 1... Nf6 {[%clk 0:02:58.3]} 2. c4 {[%clk 0:03:01.2]}
2... g6 {[%clk 0:02:57.3]} 3. g3 {[%clk 0:03:01.8]} 3... Bg7 {[%clk 0:02:56.6]}
4. Bg2 {[%clk 0:03:02.5]} 4... O-O {[%clk 0:02:56.1]} 5. Nc3 {[%clk 0:03:03.2]}
5... d6 {[%clk 0:02:56.4]} 6. h3 {[%clk 0:03:01.8]} 6... Nc6 {[%clk 0:02:56.1]}
7. Nf3 {[%clk 0:03:01.1]} 7... e5 {[%clk 0:02:56]} 8. Be3 {[%clk 0:02:52]} 8...
exd4 {[%clk 0:02:25.6]} 9. Nxd4 {[%clk 0:02:47.8]} 9... Ne5 {[%clk 0:02:26.5]}
10. b3 {[%clk 0:02:46.8]} 10... c6 {[%clk 0:02:19.2]} 11. O-O {[%clk 0:02:43.2]}
11... d5 {[%clk 0:02:19.3]} 12. cxd5 {[%clk 0:02:41.5]} 12... Nxd5 {[%clk
0:02:19.5]} 13. Nxd5 {[%clk 0:02:41.4]} 13... cxd5 {[%clk 0:02:20.4]} 14. Qd2
{[%clk 0:02:39.7]} 14... Be6 {[%clk 0:02:19.7]} 15. Rac1 {[%clk 0:02:37.8]}
15... Qd7 {[%clk 0:02:15.3]} 16. Kh2 {[%clk 0:02:36.9]} 16... a6 {[%clk
0:02:11.9]} 17. Qb4 {[%clk 0:02:28.4]} 17... Nc6 {[%clk 0:02:04.8]} 18. Nxc6
{[%clk 0:02:23.2]} 18... bxc6 {[%clk 0:02:03.2]} 19. Qc5 {[%clk 0:02:22.9]}
19... Rfc8 {[%clk 0:01:57.8]} 20. Rfd1 {[%clk 0:02:21.6]} 20... Bf8 {[%clk
0:01:57.4]} 21. Qa5 {[%clk 0:02:22]} 21... Qb7 {[%clk 0:01:45.9]} 22. Rc2 {[%clk
0:02:11.4]} 22... Qb5 {[%clk 0:01:42]} 23. Qd2 {[%clk 0:02:09.6]} 23... a5
{[%clk 0:01:38.2]} 24. Bh6 {[%clk 0:01:55.4]} 24... Bxh6 {[%clk 0:01:31.3]} 25.
Qxh6 {[%clk 0:01:56.3]} 25... a4 {[%clk 0:01:30.6]} 26. bxa4 {[%clk 0:01:47.4]}
26... Rxa4 {[%clk 0:01:30.1]} 27. Rcd2 {[%clk 0:01:42.9]} 27... Rca8 {[%clk
0:01:27.8]} 28. Ra1 {[%clk 0:00:45.4]} 28... Qc4 {[%clk 0:01:15.7]} 29. Rb2
{[%clk 0:00:38.5]} 29... Re8 {[%clk 0:00:46.8]} 30. Rc1 {[%clk 0:00:31.9]} 30...
Qd4 {[%clk 0:00:43.7]} 31. Rd2 {[%clk 0:00:29.7]} 31... Qxf2 {[%clk 0:00:41.9]}
32. Rxc6 {[%clk 0:00:21.7]} 32... Ra3 {[%clk 0:00:37.7]} 33. Qg5 {[%clk
0:00:17.1]} 33... Re3 {[%clk 0:00:27.8]} 34. Rcc2 {[%clk 0:00:15.1]} 34... h6
{[%clk 0:00:24.4]} 35. Qf4 {[%clk 0:00:10.5]} 35... Qxf4 {[%clk 0:00:24.4]} 36.
gxf4 {[%clk 0:00:11.4]} 36... Kg7 {[%clk 0:00:20.4]} 37. a4 {[%clk 0:00:11.4]}
37... Ra8 {[%clk 0:00:19.4]} 38. Ra2 {[%clk 0:00:11.9]} 38... d4 {[%clk
0:00:19.4]} 39. Ra1 {[%clk 0:00:12.3]} 39... Ra5 {[%clk 0:00:17.5]} 40. Bf3
{[%clk 0:00:10.8]} 40... Kf6 {[%clk 0:00:12.1]} 41. Rxd4 {[%clk 0:00:10.7]}
41... Kf5 {[%clk 0:00:08.8]} 42. Kg2 {[%clk 0:00:09.8]} 42... g5 {[%clk
0:00:06.9]} 43. fxg5 {[%clk 0:00:06.3]} 43... hxg5 {[%clk 0:00:07.8]} 44. Kf2
{[%clk 0:00:07]} 44... Ke5 {[%clk 0:00:07.5]} 45. Kxe3 {[%clk 0:00:06.9]} 1-0

[Event "Early-Titled-Tuesday-Blitz-October-17-2023"]
[Site "Chess.com"]
[Date "2023.10.17"]
[Round "6"]
[White "arminmusovic"]
[Black "GradualismUnleashed"]
[Result "0-1"]
[WhiteElo "2493"]
[BlackElo "2623"]
[TimeControl "180+1"]
[EndTime "9:11:30 PDT"]
[Termination "GradualismUnleashed won by checkmate"]

1. a3 {[%clk 0:03:00.9]} 1... g6 {[%clk 0:02:59.5]} 2. Nc3 {[%clk 0:03:01.1]}
2... Bg7 {[%clk 0:02:59.7]} 3. e4 {[%clk 0:03:01.9]} 3... c5 {[%clk 0:03:00]} 4.
Bc4 {[%clk 0:03:02.4]} 4... Nc6 {[%clk 0:02:58.4]} 5. d3 {[%clk 0:03:03.1]} 5...
a6 {[%clk 0:02:57.2]} 6. Ba2 {[%clk 0:02:59.9]} 6... e6 {[%clk 0:02:56.6]} 7.
Nge2 {[%clk 0:02:58.9]} 7... b5 {[%clk 0:02:55.7]} 8. O-O {[%clk 0:02:56.4]}
8... Nge7 {[%clk 0:02:54.9]} 9. f4 {[%clk 0:02:56.4]} 9... d6 {[%clk 0:02:43.1]}
10. f5 {[%clk 0:02:33.1]} 10... exf5 {[%clk 0:02:35]} 11. Ng3 {[%clk 0:02:31.6]}
11... Nd4 {[%clk 0:02:16.8]} 12. Bg5 {[%clk 0:02:16]} 12... Be6 {[%clk 0:01:47]}
13. exf5 {[%clk 0:02:11.6]} 13... Ndxf5 {[%clk 0:01:39.9]} 14. Bxe6 {[%clk
0:02:02.7]} 14... fxe6 {[%clk 0:01:38.7]} 15. Nxf5 {[%clk 0:02:03.3]} 15... gxf5
{[%clk 0:01:35.9]} 16. Qh5+ {[%clk 0:01:54.3]} 16... Kd7 {[%clk 0:01:36.1]} 17.
Qf7 {[%clk 0:01:49.8]} 17... Qf8 {[%clk 0:01:32.9]} 18. Qh5 {[%clk 0:01:36.4]}
18... Ng6 {[%clk 0:01:27.9]} 19. Rae1 {[%clk 0:01:35.5]} 19... Bd4+ {[%clk
0:01:19.3]} 20. Kh1 {[%clk 0:01:35.7]} 20... Qf7 {[%clk 0:01:17.5]} 21. Ne2
{[%clk 0:01:30.2]} 21... Bxb2 {[%clk 0:01:13.9]} 22. Qf3 {[%clk 0:01:30.3]}
22... Rab8 {[%clk 0:01:07.6]} 23. d4 {[%clk 0:01:29.8]} 23... cxd4 {[%clk
0:01:02.5]} 24. Qb3 {[%clk 0:01:27.2]} 24... Bc3 {[%clk 0:00:58.8]} 25. Nxc3
{[%clk 0:01:27.5]} 25... dxc3 {[%clk 0:00:59.7]} 26. Qxc3 {[%clk 0:01:13.7]}
26... Rhc8 {[%clk 0:00:59.7]} 27. Qa5 {[%clk 0:01:13.9]} 27... Rc6 {[%clk
0:00:57.5]} 28. Re2 {[%clk 0:01:07.5]} 28... f4 {[%clk 0:00:53.1]} 29. Rd2
{[%clk 0:01:06.8]} 29... Qf5 {[%clk 0:00:48.9]} 30. Bh6 {[%clk 0:00:58.7]} 30...
b4 {[%clk 0:00:27.5]} 31. Qxf5 {[%clk 0:00:40.2]} 31... exf5 {[%clk 0:00:28.4]}
32. axb4 {[%clk 0:00:34.5]} 32... Rxb4 {[%clk 0:00:28.3]} 33. h3 {[%clk
0:00:31.8]} 33... a5 {[%clk 0:00:27.9]} 34. Ra1 {[%clk 0:00:26.8]} 34... a4
{[%clk 0:00:28]} 35. Rf2 {[%clk 0:00:19.7]} 35... Rc3 {[%clk 0:00:27.3]} 36. Bg7
{[%clk 0:00:18.9]} 36... Re3 {[%clk 0:00:22.7]} 37. c3 {[%clk 0:00:19.2]} 37...
Rc4 {[%clk 0:00:21.7]} 38. Bd4 {[%clk 0:00:19.7]} 38... Re4 {[%clk 0:00:20.6]}
39. Rfa2 {[%clk 0:00:19.9]} 39... Ne5 {[%clk 0:00:17.4]} 40. Rxa4 {[%clk
0:00:20.3]} 40... Rxa4 {[%clk 0:00:17.5]} 41. Rxa4 {[%clk 0:00:21.2]} 41... f3
{[%clk 0:00:17.8]} 42. Ra7+ {[%clk 0:00:21.5]} 42... Ke6 {[%clk 0:00:18.2]} 43.
gxf3 {[%clk 0:00:21.4]} 43... Nxf3 {[%clk 0:00:18.5]} 44. Rxh7 {[%clk
0:00:19.7]} 44... Re2 {[%clk 0:00:18.7]} 45. Bg1 {[%clk 0:00:18.5]} 45... Re1
{[%clk 0:00:18.9]} 46. Rg7 {[%clk 0:00:19]} 46... Kd5 {[%clk 0:00:17.5]} 47. Rg3
{[%clk 0:00:17.2]} 47... Ke4 {[%clk 0:00:17.3]} 48. h4 {[%clk 0:00:16.8]} 48...
Nxh4 {[%clk 0:00:16.6]} 49. Kh2 {[%clk 0:00:16.6]} 49... Nf3+ {[%clk 0:00:16.8]}
50. Rxf3 {[%clk 0:00:07.4]} 50... Kxf3 {[%clk 0:00:17.1]} 51. Bd4 {[%clk
0:00:08.3]} 51... Re2+ {[%clk 0:00:17.2]} 52. Kh3 {[%clk 0:00:08.1]} 52... f4
{[%clk 0:00:17.7]} 53. Bf6 {[%clk 0:00:08]} 53... Re6 {[%clk 0:00:17.6]} 54. Bd4
{[%clk 0:00:08.4]} 54... Rh6# {[%clk 0:00:17.6]} 0-1

[Event "Early-Titled-Tuesday-Blitz-October-17-2023"]
[Site "Chess.com"]
[Date "2023.10.17"]
[Round "6"]
[White "venturov"]
[Black "Bauman_Guy"]
[Result "1/2-1/2"]
[WhiteElo "2468"]
[BlackElo "2844"]
[TimeControl "180+1"]
[EndTime "9:11:33 PDT"]
[Termination "Game drawn - insufficient material"]

1. e4 {[%clk 0:03:00.9]} 1... c5 {[%clk 0:02:56.2]} 2. Nf3 {[%clk 0:03:00.9]}
2... d6 {[%clk 0:02:51.7]} 3. d4 {[%clk 0:03:00.9]} 3... Nf6 {[%clk 0:02:50.9]}
4. Nc3 {[%clk 0:03:01]} 4... cxd4 {[%clk 0:02:50.5]} 5. Nxd4 {[%clk 0:03:01.9]}
5... a6 {[%clk 0:02:51]} 6. h3 {[%clk 0:03:02]} 6... e5 {[%clk 0:02:49.9]} 7.
Nf3 {[%clk 0:03:01.8]} 7... Be7 {[%clk 0:02:49.3]} 8. g4 {[%clk 0:03:02]} 8...
b5 {[%clk 0:02:49.1]} 9. g5 {[%clk 0:03:00]} 9... Nfd7 {[%clk 0:02:48.4]} 10. h4
{[%clk 0:02:59.9]} 10... Bb7 {[%clk 0:02:48]} 11. a4 {[%clk 0:02:57.2]} 11... b4
{[%clk 0:02:47.6]} 12. Nd5 {[%clk 0:02:57.3]} 12... Nb6 {[%clk 0:02:46.7]} 13.
Nxb6 {[%clk 0:02:48]} 13... Qxb6 {[%clk 0:02:47.6]} 14. Be3 {[%clk 0:02:48.4]}
14... Qc7 {[%clk 0:02:46]} 15. Nd2 {[%clk 0:02:44.1]} 15... Nd7 {[%clk
0:02:45.4]} 16. Qf3 {[%clk 0:02:42.8]} 16... Nc5 {[%clk 0:02:34.2]} 17. Bxc5
{[%clk 0:02:36.3]} 17... Qxc5 {[%clk 0:02:35.1]} 18. Bd3 {[%clk 0:02:36.2]}
18... h6 {[%clk 0:02:32.6]} 19. Rg1 {[%clk 0:02:30]} 19... hxg5 {[%clk
0:02:32.2]} 20. hxg5 {[%clk 0:02:30.9]} 20... g6 {[%clk 0:02:32.6]} 21. O-O-O
{[%clk 0:02:28.5]} 21... Rc8 {[%clk 0:02:27.2]} 22. Kb1 {[%clk 0:02:25.6]} 22...
Rh5 {[%clk 0:02:20.7]} 23. Bc4 {[%clk 0:02:14.3]} 23... Qxc4 {[%clk 0:02:09.4]}
24. Nxc4 {[%clk 0:02:13.2]} 24... Rxc4 {[%clk 0:02:10.3]} 25. Rde1 {[%clk
0:01:50.5]} 25... Bxg5 {[%clk 0:02:06.5]} 26. Rh1 {[%clk 0:01:39.5]} 26... Rxh1
{[%clk 0:02:02.8]} 27. Qxh1 {[%clk 0:01:40.4]} 27... Ke7 {[%clk 0:02:02]} 28.
Qg2 {[%clk 0:01:29.4]} 28... Bf4 {[%clk 0:01:57.8]} 29. f3 {[%clk 0:01:28.4]}
29... d5 {[%clk 0:01:56.7]} 30. exd5 {[%clk 0:01:28.4]} 30... Bxd5 {[%clk
0:01:57.6]} 31. Rd1 {[%clk 0:01:21.1]} 31... Be6 {[%clk 0:01:57.1]} 32. Qf2
{[%clk 0:01:15.5]} 32... Kf6 {[%clk 0:01:53.2]} 33. Qh4+ {[%clk 0:01:10.9]}
33... Bg5 {[%clk 0:01:52.6]} 34. Qh8+ {[%clk 0:01:10.8]} 34... Kf5 {[%clk
0:01:53.1]} 35. Re1 {[%clk 0:01:00.5]} 35... Bf4 {[%clk 0:01:48.1]} 36. Qh3+
{[%clk 0:00:50.9]} 36... Kf6 {[%clk 0:01:47.8]} 37. Qh8+ {[%clk 0:00:51.1]}
37... Kf5 {[%clk 0:01:38.3]} 38. Qh3+ {[%clk 0:00:43.8]} 38... Kf6 {[%clk
0:01:38.1]} 39. Qh8+ {[%clk 0:00:44.1]} 39... Ke7 {[%clk 0:01:28.7]} 40. Rd1
{[%clk 0:00:44.3]} 40... Rc8 {[%clk 0:01:28.6]} 41. Qh4+ {[%clk 0:00:44.2]}
41... g5 {[%clk 0:01:28.6]} 42. Qh7 {[%clk 0:00:42.2]} 42... b3 {[%clk
0:01:28.3]} 43. cxb3 {[%clk 0:00:39.8]} 43... Bxb3 {[%clk 0:01:27.9]} 44. Qf5
{[%clk 0:00:25.7]} 44... Rc7 {[%clk 0:01:22.8]} 45. Re1 {[%clk 0:00:14.3]} 45...
Rc5 {[%clk 0:01:16.7]} 46. Qe4 {[%clk 0:00:08.6]} 46... Kf6 {[%clk 0:01:10.8]}
47. Qd3 {[%clk 0:00:06.7]} 47... Bc2+ {[%clk 0:00:51.1]} 48. Qxc2 {[%clk
0:00:06.8]} 48... Rxc2 {[%clk 0:00:52]} 49. Kxc2 {[%clk 0:00:07.7]} 49... Ke6
{[%clk 0:00:52.8]} 50. Kd3 {[%clk 0:00:08.1]} 50... Kd5 {[%clk 0:00:52.8]} 51.
b4 {[%clk 0:00:08.4]} 51... f5 {[%clk 0:00:53.1]} 52. b5 {[%clk 0:00:07.2]}
52... axb5 {[%clk 0:00:53.6]} 53. axb5 {[%clk 0:00:08.1]} 53... Kc5 {[%clk
0:00:54]} 54. Rb1 {[%clk 0:00:08.3]} 54... Kb6 {[%clk 0:00:54.3]} 55. Kc4 {[%clk
0:00:05.1]} 55... g4 {[%clk 0:00:53.4]} 56. fxg4 {[%clk 0:00:05.2]} 56... fxg4
{[%clk 0:00:54.3]} 57. Kd3 {[%clk 0:00:05.7]} 57... g3 {[%clk 0:00:53.7]} 58.
Ke4 {[%clk 0:00:06.1]} 58... g2 {[%clk 0:00:47.8]} 59. Rg1 {[%clk 0:00:05.8]}
59... Kxb5 {[%clk 0:00:47.2]} 60. Rxg2 {[%clk 0:00:06.4]} 60... Kc4 {[%clk
0:00:48.1]} 61. Rg4 {[%clk 0:00:06.6]} 61... Kc3 {[%clk 0:00:48.2]} 62. Rxf4
{[%clk 0:00:05.8]} 62... exf4 {[%clk 0:00:49.1]} 63. Kxf4 {[%clk 0:00:06.7]}
1/2-1/2

[Event "Early-Titled-Tuesday-Blitz-October-17-2023"]
[Site "Chess.com"]
[Date "2023.10.17"]
[Round "6"]
[White "Me_ch_an"]
[Black "Sekar24"]
[Result "0-1"]
[WhiteElo "2357"]
[BlackElo "2519"]
[TimeControl "180+1"]
[EndTime "9:11:33 PDT"]
[Termination "Sekar24 won by checkmate"]

1. e4 {[%clk 0:03:00.9]} 1... e5 {[%clk 0:02:49.2]} 2. Nf3 {[%clk 0:03:00.8]}
2... Nc6 {[%clk 0:02:49.1]} 3. Bb5 {[%clk 0:03:00.9]} 3... a6 {[%clk 0:02:49]}
4. Ba4 {[%clk 0:03:00.9]} 4... Nf6 {[%clk 0:02:49.3]} 5. Qe2 {[%clk 0:03:01.3]}
5... b5 {[%clk 0:02:47.1]} 6. Bb3 {[%clk 0:03:01.4]} 6... Bc5 {[%clk 0:02:48]}
7. c3 {[%clk 0:03:01.6]} 7... d6 {[%clk 0:02:48]} 8. O-O {[%clk 0:03:02.1]} 8...
O-O {[%clk 0:02:45.8]} 9. Rd1 {[%clk 0:03:02.4]} 9... Bg4 {[%clk 0:02:38]} 10.
d3 {[%clk 0:03:02.5]} 10... h6 {[%clk 0:02:33.8]} 11. Nbd2 {[%clk 0:03:02.6]}
11... Bb6 {[%clk 0:02:26.5]} 12. Nf1 {[%clk 0:03:02.2]} 12... Ne7 {[%clk
0:02:17.3]} 13. h3 {[%clk 0:03:02.3]} 13... Be6 {[%clk 0:01:56.6]} 14. Bc2
{[%clk 0:03:01.7]} 14... Ng6 {[%clk 0:01:54.7]} 15. Ng3 {[%clk 0:03:01.5]} 15...
c5 {[%clk 0:01:52.9]} 16. Nh2 {[%clk 0:02:49.9]} 16... d5 {[%clk 0:01:49.8]} 17.
Nf5 {[%clk 0:02:33.7]} 17... Qd7 {[%clk 0:01:43.6]} 18. Qf3 {[%clk 0:02:29.7]}
18... Bxf5 {[%clk 0:01:24.4]} 19. exf5 {[%clk 0:02:30.6]} 19... Ne7 {[%clk
0:01:22.8]} 20. Ng4 {[%clk 0:02:17.5]} 20... Qxf5 {[%clk 0:01:09.7]} 21. Nxf6+
{[%clk 0:01:54.2]} 21... Qxf6 {[%clk 0:01:10.6]} 22. Qxf6 {[%clk 0:01:50.4]}
22... gxf6 {[%clk 0:01:11.5]} 23. Bxh6 {[%clk 0:01:50.7]} 23... Rfd8 {[%clk
0:01:10.6]} 24. f4 {[%clk 0:01:34.5]} 24... Nf5 {[%clk 0:01:08.4]} 25. fxe5
{[%clk 0:01:32.8]} 25... Nxh6 {[%clk 0:01:08.2]} 26. exf6 {[%clk 0:01:30.9]}
26... d4 {[%clk 0:01:01.6]} 27. Rf1 {[%clk 0:01:20.5]} 27... dxc3 {[%clk
0:00:59.7]} 28. bxc3 {[%clk 0:01:20.5]} 28... Kf8 {[%clk 0:00:42.9]} 29. g4
{[%clk 0:01:15.6]} 29... b4 {[%clk 0:00:39.7]} 30. c4 {[%clk 0:01:08.9]} 30...
Bc7 {[%clk 0:00:38.9]} 31. g5 {[%clk 0:01:06.5]} 31... Ng8 {[%clk 0:00:35.7]}
32. Rf5 {[%clk 0:01:05.9]} 32... Re8 {[%clk 0:00:26.8]} 33. Raf1 {[%clk
0:00:56.5]} 33... Be5 {[%clk 0:00:26.6]} 34. Kf2 {[%clk 0:00:27.8]} 34... Bd4+
{[%clk 0:00:27.5]} 35. Kg3 {[%clk 0:00:28]} 35... Re2 {[%clk 0:00:26.5]} 36. Bb3
{[%clk 0:00:22.7]} 36... a5 {[%clk 0:00:26.6]} 37. h4 {[%clk 0:00:06.8]} 37...
a4 {[%clk 0:00:26.7]} 38. Bd1 {[%clk 0:00:04.9]} 38... Rxa2 {[%clk 0:00:26.7]}
39. h5 {[%clk 0:00:05.1]} 39... Rd2 {[%clk 0:00:19]} 40. R5f3 {[%clk 0:00:03.7]}
40... Be5+ {[%clk 0:00:16.8]} 41. Kg4 {[%clk 0:00:03.3]} 41... Rg2+ {[%clk
0:00:17]} 42. Kf5 {[%clk 0:00:03.6]} 42... Bc3 {[%clk 0:00:14.4]} 43. h6 {[%clk
0:00:03.9]} 43... Bd2 {[%clk 0:00:14.5]} 44. h7 {[%clk 0:00:02.6]} 44... Rxg5+
{[%clk 0:00:14.7]} 45. Ke4 {[%clk 0:00:02.9]} 45... Re8# {[%clk 0:00:15.3]} 0-1

[Event "Early-Titled-Tuesday-Blitz-October-17-2023"]
[Site "Chess.com"]
[Date "2023.10.17"]
[Round "6"]
[White "chrisclaireredfield"]
[Black "ChessQueen"]
[Result "1-0"]
[WhiteElo "2535"]
[BlackElo "2698"]
[TimeControl "180+1"]
[EndTime "9:11:36 PDT"]
[Termination "chrisclaireredfield won on time"]

1. Nf3 {[%clk 0:02:58]} 1... f5 {[%clk 0:02:58.8]} 2. g3 {[%clk 0:02:57]} 2...
Nf6 {[%clk 0:02:58.9]} 3. Bg2 {[%clk 0:02:57.2]} 3... g6 {[%clk 0:02:59.5]} 4.
O-O {[%clk 0:02:56.8]} 4... Bg7 {[%clk 0:03:00.1]} 5. c4 {[%clk 0:02:57.2]} 5...
O-O {[%clk 0:03:00.1]} 6. Nc3 {[%clk 0:02:57.2]} 6... d6 {[%clk 0:03:00.3]} 7.
b3 {[%clk 0:02:56.9]} 7... e5 {[%clk 0:03:00]} 8. Bb2 {[%clk 0:02:50.8]} 8...
Nc6 {[%clk 0:02:47.8]} 9. d4 {[%clk 0:02:30]} 9... e4 {[%clk 0:02:43.1]} 10. Ne1
{[%clk 0:02:29.7]} 10... d5 {[%clk 0:02:31.7]} 11. Nc2 {[%clk 0:02:28.6]} 11...
Be6 {[%clk 0:02:29.6]} 12. c5 {[%clk 0:02:22.5]} 12... g5 {[%clk 0:02:03.6]} 13.
f4 {[%clk 0:02:18.7]} 13... gxf4 {[%clk 0:01:56.3]} 14. Rxf4 {[%clk 0:02:16.1]}
14... Nh5 {[%clk 0:01:56.2]} 15. Rh4 {[%clk 0:02:11.9]} 15... Bf7 {[%clk
0:01:53.5]} 16. e3 {[%clk 0:02:06.7]} 16... Qg5 {[%clk 0:01:44.3]} 17. Nxd5
{[%clk 0:01:57.7]} 17... Nxg3 {[%clk 0:01:44.2]} 18. hxg3 {[%clk 0:01:46.5]}
18... Bxd5 {[%clk 0:01:44]} 19. Kh2 {[%clk 0:01:42.1]} 19... Rf6 {[%clk
0:01:38.4]} 20. Qh5 {[%clk 0:01:35.9]} 20... h6 {[%clk 0:01:38]} 21. Rf1 {[%clk
0:01:26.5]} 21... Raf8 {[%clk 0:01:35.7]} 22. b4 {[%clk 0:01:25.5]} 22... Rg6
{[%clk 0:01:31]} 23. Rh3 {[%clk 0:01:18.1]} 23... Bxa2 {[%clk 0:01:26.4]} 24. b5
{[%clk 0:01:17]} 24... Ne7 {[%clk 0:01:24.9]} 25. Ra1 {[%clk 0:01:13.7]} 25...
Bb3 {[%clk 0:01:24.5]} 26. Qxg5 {[%clk 0:01:02.7]} 26... hxg5 {[%clk 0:01:14.5]}
27. Nb4 {[%clk 0:01:03.1]} 27... Ra8 {[%clk 0:01:13.5]} 28. g4 {[%clk 0:00:27]}
28... fxg4 {[%clk 0:00:54]} 29. Rg3 {[%clk 0:00:24.5]} 29... Nf5 {[%clk
0:00:53.6]} 30. Rxg4 {[%clk 0:00:24.8]} 30... Nxe3 {[%clk 0:00:53.9]} 31. Rxe4
{[%clk 0:00:23]} 31... Nxg2 {[%clk 0:00:53.9]} 32. Kxg2 {[%clk 0:00:23.2]} 32...
a5 {[%clk 0:00:52.1]} 33. Re7 {[%clk 0:00:17.7]} 33... Rc8 {[%clk 0:00:21.1]}
34. Rxa5 {[%clk 0:00:16.7]} 34... Bf8 {[%clk 0:00:21.8]} 35. Re5 {[%clk
0:00:15.7]} 35... b6 {[%clk 0:00:21]} 36. Ra7 {[%clk 0:00:14.6]} 36... Bc4
{[%clk 0:00:16.8]} 37. Nd5 {[%clk 0:00:08.9]} 37... bxc5 {[%clk 0:00:15.8]} 38.
Nxc7 {[%clk 0:00:05.7]} 38... cxd4 {[%clk 0:00:14.3]} 39. Bxd4 {[%clk
0:00:03.9]} 39... Rd6 {[%clk 0:00:08.9]} 40. Be3 {[%clk 0:00:03.1]} 40... Bg7
{[%clk 0:00:07.8]} 41. Rxg5 {[%clk 0:00:03.2]} 41... Rd7 {[%clk 0:00:05.6]} 42.
b6 {[%clk 0:00:03.5]} 42... Rb8 {[%clk 0:00:05.7]} 43. Bf4 {[%clk 0:00:02.3]}
43... Rxb6 {[%clk 0:00:05.2]} 44. Be5 {[%clk 0:00:02.7]} 44... Rb8 {[%clk
0:00:03.2]} 45. Bxg7 {[%clk 0:00:02.1]} 45... Kh7 {[%clk 0:00:01.2]} 46. Be5
{[%clk 0:00:01.9]} 46... Rc8 {[%clk 0:00:01.3]} 47. Kg3 {[%clk 0:00:01.9]} 1-0